Cogmind - Beta 16 @@@ ROGUE MODE // 2025.10.29 @ 00:40:26 Player: Savant Result: Destroyed by AA-03D(R) with Subdweller Machine Gun Performance ------------- Evolutions (0) 0 Regions Visited (2) 400 Robots Destroyed (14) 70 Value Destroyed (463) 463 Prototype IDs (0) 0 Alien Tech Used (0) 0 Bonus (0) 0 TOTAL SCORE: 933 Bonus ------- None Cogmind --------- Core Integrity 0/250 Matter 245/300 Energy 100/100 System Corruption 0% Temperature Cool (0) Movement Core (50) Location -10/Subcaves Parts ------- > --- POWER (1) -------- (None) > --- PROPULSION (2) --- (None) > --- UTILITY (2) ------ Structural Scanner > --- WEAPON (2) ------- (None) > --- INVENTORY (5) ---- Subdweller Monowheel Subdweller Monowheel Peak State ------------ > --- POWER ------------ Subdweller Power Source > --- PROPULSION ------- Light Treads Subdweller Monowheel > --- UTILITY ---------- Scrap Shield > --- WEAPON ----------- Subdweller Laser Subdweller Beam Cannon > --- INVENTORY -------- Subdweller Monowheel Structural Scanner Seismic Detector Subdweller Shrapnel Launcher [Rating: 13] Favorites ----------- Power Subdweller Power Source Engine Subdweller Power Source Propulsion Light Treads Treads Light Treads Wheel Subdweller Monowheel Utility Scrap Shield Device Seismic Detector Storage Small Storage Unit Protection Scrap Shield Weapon Subdweller Beam Cannon Energy Gun Subdweller Laser Energy Cannon Subdweller Beam Cannon Ballistic Gun Assault Rifle Launcher Subdweller Shrapnel Launcher Build | -11 -10 -10 ------- Run | Yrd Mat Sub Slots Evolved . | . . . Power . | . . . Propulsion . | . . . Utility . | . . . Weapon . | . . . Parts Attached 22 | 7 2 13 Power 4 | 1 . 3 Engine 4 | 1 . 3 Core . | . . . Reactor . | . . . Propulsion 6 | 2 . 4 Treads 2 | 2 . . Leg . | . . . Wheel 4 | . . 4 Hover . | . . . Flight . | . . . Utility 4 | 2 . 2 Device 2 | 1 . 1 Storage 1 | 1 . . Processor . | . . . Hackware . | . . . Protection 1 | . . 1 Artifact . | . . . Weapon 8 | 2 2 4 Energy Gun 2 | . . 2 Energy Cannon 1 | . . 1 Ballistic Gun 4 | 2 2 . Ballistic Cannon . | . . . Launcher 1 | . . 1 Special Weapon . | . . . Impact Weapon . | . . . Slashing Weapon . | . . . Piercing Weapon . | . . . Special Melee Weapon . | . . . Unidentified Prototypes . | . . . Parts Lost 13 | . . 13 Power 3 | . . 3 Propulsion 3 | . . 3 Utility 2 | . . 2 Weapon 5 | . . 5 Highest Loss Streak 8 | . . 8 To Critical Strikes 1 | . . 1 Average Backups 5 | 5 7 5 Power . | . 1 . Propulsion 2 | 3 3 1 Utility 1 | . 2 2 Weapon . | . 1 . Tool/Special . | . . . Unused Backups 9 | . 2 7 Power . | . . . Propulsion 5 | . 1 4 Utility 2 | . . 2 Weapon 2 | . 1 1 Tool/Special . | . . . Average Slot Usage (%) 87 | . 100 86 Engine 13 | . 14 13 Treads 21 | . 28 20 Wheel 6 | . . 6 Device 5 | . 14 4 Storage 3 | . 14 2 Protection 8 | . . 9 Energy Gun 11 | . . 11 Energy Cannon 11 | . . 12 Ballistic Gun 5 | . 28 3 Peak Build Rating 13 | 8 8 13 Average Rating 10 | 5 7 11 On Entrance 5 | . 8 8 Avg Prop Armor Cover (%) 5 | . . 5 Naked Turns . | . . . Heaviest Build 35 | 13 15 35 Greatest Support 40 | 40 40 40 Greatest Overweight (x) 1 | . . 1 Average Overweight (x) . | . . . Largest Inventory Capacity 8 | 8 8 8 Average Capacity 5 | 7 8 5 Most Carried 8 | 8 8 8 Average Carried 5 | 5 7 5 Final Capacity 8 | 8 8 5 Final Carried 8 | 8 8 2 Class Distribution -------------------- 65% | Subdweller-Mutant 22% | Mutant 12% | Scavenger-Mutant Dominant Class ---------------- Mutant | -10/Materials Subdweller-Mutant | -10/Subcaves Resources | -11 -10 -10 ----------- Run | Yrd Mat Sub Matter Collected 494 | 292 20 182 Remotely . | . . . Salvage Created 604 | 126 . 478 Parts 39 | 5 . 34 Haulers Intercepted . | . . . Recyclers Shooed . | . . . Parts Field Recycled . | . . . Retrieved Matter . | . . . Parts Self-Destructed 14 | . . 14 Prevented . | . . . Parts Restored . | . . . Kills | -11 -10 -10 ------- Run | Yrd Mat Sub Combat Hostiles Destroyed 12 | . . 12 Guns 2 | . . 2 Cannons 8 | . . 8 AOE 2 | . . 2 Classes Destroyed 4 | 2 . 2 Tunneler 1 | 1 . . Recycler 1 | 1 . . Swarmer 1 | . . 1 Subdweller 11 | . . 11 Best Kill Streak 2 | 1 . 2 Combat Bots Only 2 | . . 2 Max Kills in Single Turn 1 | 1 . 1 Gunslinging . | . . . Exploded 1 | . . 1 Melee . | . . . Uniques/NPCs Destroyed . | . . . Combat | -11 -10 -10 -------- Run | Yrd Mat Sub Hostile Shots Fired 91 | . 4 87 Missed 16 | . 3 13 Hits 75 | . 1 74 Projectile 75 | . 1 74 AOE 3 | . . 3 Critical Strikes 4 | . . 4 Damage Taken 1837 | . 10 1827 Core 273 | . . 273 Absorbed by Shields . | . . . Core Remaining (%) 100 | 100 . . Volleys Fired 70 | 11 . 59 Largest 2 | 2 . 2 Hottest 140 | 40 . 140 Shots Fired 100 | 22 . 78 Gun 60 | 22 . 38 Cannon 37 | . . 37 Launcher 3 | . . 3 Special . | . . . Kinetic 49 | 22 . 27 Thermal 51 | . . 51 Explosive . | . . . Electromagnetic . | . . . Robot Hit Streak 32 | 8 . 32 Robot Miss Streak 3 | 1 . 3 Penetration Max . | . . . Secondary Targets . | . . . Shots Hit Robots 77 | 16 . 61 Core Hits 20 | 3 . 17 Critical Kills . | . . . Critical Parts Destroyed . | . . . Critical Strikes . | . . . Melee Attacks . | . . . Impact . | . . . Slashing . | . . . Piercing . | . . . Sneak Attacks . | . . . Combat Hostiles . | . . . Follow-up Attacks . | . . . Damage Inflicted 1776 | 133 . 1643 Guns 514 | 133 . 381 Cannons 842 | . . 842 Explosions 420 | . . 420 Melee . | . . . Ramming . | . . . Kinetic 828 | 133 . 695 Thermal 948 | . . 948 Explosive . | . . . Electromagnetic . | . . . Impact . | . . . Slashing . | . . . Piercing . | . . . Highest Corruption . | . . . Average Corruption . | . . . Corruption Purged . | . . . Corruption Blocked . | . . . Overload Shots . | . . . Overflow Damage 11 | . . 11 Projectiles . | . . . Explosions 11 | . . 11 Melee . | . . . Knockbacks . | . . . Impact . | . . . Kinetic . | . . . Secondary . | . . . Self-Inflicted Damage 164 | . . 164 Shots 3 | . . 3 Rammed . | . . . Targets Rammed . | . . . Kicked . | . . . Crushed . | . . . Highest Temperature 254 | . . 254 Average Temperature 28 | . . 28 Received Heat Transfer 686 | . 6 680 Siege Activations . | . . . Martial Activations . | . . . Shielding Activations . | . . . Robots Disrupted . | . . . Combat Hostiles . | . . . Robots Corrupted . | . . . Combat Hostiles . | . . . Parts Fried . | . . . Impact Corruptions . | . . . Robots Melted . | . . . Combat Hostiles . | . . . Parts Melted 1 | . . 1 Heat Transferred 1235 | . . 1235 Parts Sabotaged . | . . . Parts Stolen . | . . . Parts Stripped . | . . . Power Chain Reactions . | . . . Alert | -11 -10 -10 ------- Run | Yrd Mat Sub Maximum Alert Level . | . . . Low Security (%) 100 | 100 100 . Level 1 . | . . . Level 2 . | . . . Level 3 . | . . . Level 4 . | . . . Level 5 . | . . . High Security . | . . . Max Security . | . . . Peak Influence 6 | 5 6 . Initial . | . . . Average . | 1 . . Influence Increases 91 | 10 6 75 Destroy 0b10 Robot/C 20 | . . 20 Destroy 0b10 Robot/NC 10 | 10 . . Destroy Leader 10 | . . 10 Successful Hack 6 | . 6 . Lose Combat Pursuer 45 | . . 45 Influence Decreases 91 | 10 6 75 Time Decay 91 | 10 6 75 Squads Dispatched . | . . . Investigation . | . . . Extermination . | . . . Reinforcement . | . . . Assault . | . . . Garrison . | . . . Intercept . | . . . Searches Triggered . | . . . Construction Impeded . | . . . Haulers Reinforced . | . . . Active Scanning Responses . | . . . Cargo Convoy Interrupts . | . . . Stealth | -11 -10 -10 --------- Run | Yrd Mat Sub Distress Signals . | . . . Communications Jammed . | . . . Distress Signals . | . . . Times Spotted 22 | . 1 21 Peak Tracking Total 5 | . 1 5 Tactical Retreats 1 | . . 1 Traps | -11 -10 -10 ------- Run | Yrd Mat Sub Traps Triggered . | . . . Indirectly . | . . . Trap Hack Attempts . | . . . Triggered . | . . . Disarmed . | . . . Reprogrammed . | . . . Reused 1 | . . 1 Traps Extracted . | . . . Installed 2 | . . 2 Triggered . | . . . Most Traps Carried 1 | . . 1 Machines | -11 -10 -10 ---------- Run | Yrd Mat Sub Machines Disabled 1 | . . 1 Max in Single Turn 1 | . . 1 Machines Repaired . | . . . Machines Dismantled . | . . . Machines Sabotaged . | . . . Overloaded Fab Kills . | . . . Hacking | -11 -10 -10 --------- Run | Yrd Mat Sub Machines Accessed 2 | . 1 1 Terminals 1 | . 1 . Fabricators . | . . . Repair Stations . | . . . Recycling Units . | . . . Scanalyzers . | . . . Garrison Access . | . . . Total Hacks 5 | . 2 3 Successful 5 | . 2 3 Failed . | . . . Catastrophic . | . . . Database Lockouts . | . . . Manual 2 | . 2 . Terminals 2 | . 2 . Fabricators . | . . . Repair Stations . | . . . Recycling Units . | . . . Scanalyzers . | . . . Garrison Access . | . . . Terminal Hacks 5 | . 2 3 Record 3 | . . 3 Part Schematic 1 | . 1 . Robot Analysis 1 | . 1 . Fabricator Hacks . | . . . Repair Station Hacks . | . . . Recycling Unit Hacks . | . . . Scanalyzer . | . . . Garrison Access Hacks . | . . . Unauthorized Hacks . | . . . Terminals . | . . . Fabricators . | . . . Repair Stations . | . . . Recycling Units . | . . . Scanalyzers . | . . . Garrison Access . | . . . Data Cores Recovered . | . . . Used . | . . . Hacking Detections 1 | . 1 . Full Trace Events . | . . . Feedback Events . | . . . Feedback Blocked . | . . . Robot Schematics Acquired . | . . . Robots Built . | . . . Authchips . | . . . Time . | . . . Total Robot Build Rating . | . . . Part Schematics Acquired 1 | . 1 . Parts Built . | . . . Authchips . | . . . Time . | . . . Total Part Build Rating . | . . . Part Studies Acquired . | . . . Parts Repaired . | . . . Time . | . . . Parts Recycled . | . . . Recycled Matter . | . . . Retrieved Matter . | . . . Retrieved Components . | . . . Parts Scanalyzed . | . . . Part Schematics Acquired . | . . . Parts Damaged . | . . . Bothacking | -11 -10 -10 ------------ Run | Yrd Mat Sub Used RIF Installer . | . . . Robots Hacked . | . . . Non-combat . | . . . Combat . | . . . Robot Hacks Applied . | . . . Relay Couplers Released . | . . . Fabnet Peak Effective % . | . . . Robots Rewired . | . . . Allies Hacked . | . . . Hacks Repelled . | . . . Allies | -11 -10 -10 -------- Run | Yrd Mat Sub Total Allies . | . . . Largest Group . | . . . Highest-Rated Group . | . . . Highest-Rated Ally . | . . . Total Orders . | . . . Ally Attacks . | . . . Total Damage . | . . . Kills . | . . . Allies Corrupted . | . . . Allies Melted . | . . . Intel | -11 -10 -10 ------- Run | Yrd Mat Sub Active Infowar (turns) 857 | 52 137 668 Structural 327 | . . 327 Seismic 544 | 52 137 355 Robot Analysis Total 1 | . 1 . Derelict Logs Recovered 3 | . . 3 Drone Launches . | . . . Drone Recoveries . | . . . Exploration | -11 -10 -10 ------------- Run | Yrd Mat Sub Turns Passed 2389 | 139 137 2113 Spaces Moved 1415 | 62 82 1271 Core 8 | 8 . . Treads 884 | 54 82 748 Legs . | . . . Wheels 523 | . . 523 Hover . | . . . Flight . | . . . Fastest Speed 50 | 50 160 110 Average Speed 144 | 145 160 143 Slowest Speed 240 | 160 160 240 Overloaded Moves . | . . . Propulsion Burnouts . | . . . Robots Hopped . | . . . Potential Cave-ins . | . . . Cave-ins Triggered . | . . . Exploration Rate (%) 23 | 5 15 49 Regions Visited 2 Branch Regions 1 Pre-discovered Areas 1 | . . 1 Known Exits Taken . | . . . Unknown Exits Taken 2 | 1 1 . Scrap Searched 3 | . . 3 Spaces Dug . | . . . Terrain Destroyed 42 | . . 42 Melee . | . . . Projectile 3 | . . 3 AOE 39 | . . 39 Terrain Rammed . | . . . Walls Destroyed . | . . . Machines Disabled . | . . . Actions | -11 -10 -10 --------- Run | Yrd Mat Sub Total 1668 | 90 90 1488 Wait 102 | 2 1 99 Move 1413 | 61 81 1271 Hop . | . . . Pick Up 24 | 9 2 13 Fast Attach 10 | 6 . 4 Attach 8 | 1 . 7 Detach 1 | . . 1 Swap 7 | . 2 5 Drop 23 | . 4 19 Fire 70 | 11 . 59 Melee . | . . . Ram . | . . . Kick . | . . . Crush . | . . . Escape Stasis . | . . . Rewire . | . . . Trap 2 | . . 2 Miscellaneous 8 | . . 8 Route ------- -11/Scrapyard -10/Materials (discovered 2 exits: [*Min] / *Sub) -10/Subcaves (discovered 4 exits: Mat x2 / [*Rec] / [*Scr]) History --------- Turn | Location | Event 8 | -11/Scrapyard | Discovered new exit (range 14) 140 | -11/Scrapyard | Entered Materials 141 | -10/Materials | Met a group of wandering Federalists 190 | -10/Materials | Discovered new exit (range 13) 269 | -10/Materials | Discovered new exit (range 7) 277 | -10/Materials | Entered Subcaves 278 | -10/Subcaves | Continued accompanying wandering Federalists (5) 278 | -10/Subcaves | Approached by a straggling Scientist 284 | -10/Subcaves | Discovered new exit (range 11) 289 | -10/Subcaves | Learned Materials emergency access door positions 314 | -10/Subcaves | Build established: Mutant 520 | -10/Subcaves | Shifting Twisted Machinery released Scrap Shield 520 | -10/Subcaves | Shifting Twisted Machinery released Sub. Monowheel 593 | -10/Subcaves | Lost 4 parts (2p2w) 783 | -10/Subcaves | Learned location of Zion (-7) 783 | -10/Subcaves | Met a Zionite searching for "candidates" 840 | -10/Subcaves | Build established: Subdweller-Mutant 1709 | -10/Subcaves | Visited Clippyterm 1712 | -10/Subcaves | Learned 2 Materials zone layouts 1713 | -10/Subcaves | Identified exit to Materials 2129 | -10/Subcaves | Build established: Scavenger-Mutant 2381 | -10/Subcaves | Core integrity fell below 50% 2386 | -10/Subcaves | Ambushed by Subdweller buried in earth 2389 | -10/Subcaves | Core integrity fell below 20% 2390 | -10/Subcaves | Destroyed by AA-03D(R) with Subdweller Machine Gun Last Messages --------------- 02181_ Acquired 10 matter. 02264_ 6X-GLU(R) destroyed. 02311_ QD-EXD(R) destroyed. 02333_ Scrap Shield Fragment affixed to Scrap Shield (+46). 02347_ Critical hit (Meltdown: +290). 02362_ Critical hit (Destroy). 02362_ Scrap Shield destroyed. 02378_ Lgt. Treads destroyed. 02382_ Sub. Beam Cannon destroyed. 02382_ Seismic Detector destroyed. 02384_ Sub. Monowheel destroyed. 02384_ O3-ASC(R) destroyed. 02386_ Sub. Power Source destroyed. 02386_ ZE-MDD(R) destroyed. [Achievement: Do Not Disturb] 02387_ AA-03D(R): "ARGHSUB!" 02388_ Sub. Laser destroyed. 02388_ Destroyed Scrap Shield. 02388_ Sub. Shrapnel Launcher destroyed. 02388_ Destroyed Sub. Shrapnel Launcher. Map ----- +----------------------------------------------------+ | ?????????????????????????????????????????????????? | | ?????????????????????????????????????????????????? | | ?????????????????????????????????????????????????? | | ?????????????????????????????????????????????????? | | ??????????????????#######????????????????????????? | | ??????????????????# !#%*#????????????????????????? | | ????###############% / %#????????????????????????? | | ##################### "#####?????????????????????? | | ###### # ## # #### ### #?####??????####??????? | | ## " ### # ### #?????## ##?????? | | "" " &[# " " *#??????# ##????? | | " "" ## #"# % ## ! #?####### #????? | | ##"#######/%# ###%### #### #???## | | ############# ! ### ! "## #??## | | ########???# # ! % " #?## ! | | " ##????????## ##### # #!# """### | | ####????##### ##???# #####"""""## # | | ####????# "" = ##???# "##??# " "" # | | ????????# "=! ####???## #???# """"""" """ | | ????????# " ####????### ######"""""" """" | | ????????# ###############""##""""" "" | | ????###?## > ##############"""" """ | | ???## ### # ## ;; ##""""""" """" # | | ??## ! ## """ " ##"" """# | | ??# | % # " #"##"""""# | | ??# # #### !!"# @ ######### """" | | ??## ####?### ### R ##??????# " | | ???# #????##!=!!#### % ##???????" ? | | ??## ##?????##% #### R #####?????"### | | ??# ##???###&&&#?## ## #?????"#?? | | ??# "" ##### & #?##; # ### ##????????? | | ??#"" # #?##### ## ###### #?????????? | | ??#" " #?#############?# ##?????????? | | ??##### #????########???######?????????? | | ??????## ##### #####??????????????????????????? | | ???????###???# ##???????####??????????????? | | ?????????????## ####????# ###????????????? | | ??????????????# ## ##???# #????????????? | | ??????????????#### ##### #????????????? | | ????????????????## #?????????????? | | ????????????????# #####?????????? | | ??????????###???# # #### ##????????? | | ?????????## ##### # ##?## #????????? | | ????????## ## * ## ####?## #????????? | | ???????## %######?#### ## ###????????? | | ???????# !=#??????# ###########?????? | | ???????## #### ^#####??# ##?#" """#?????? | | ????????#####??## ##### ## ### "#?????? | | ???????????????# ####?# ## "#?????? | | ???????????????# #??## ! = ""##????? | +----------------------------------------------------+ Best States ------------- Heat Dissipation 25 Energy Generation 10 Energy Capacity 250 Matter Stores 300 Matter Capacity 300 Sight Range 16 Terrain Scan Density 10 Armor Coverage 800 Evasion (%) 40 Recoil Reduction 2 Item Schematics ----------------- Huge Storage Unit | -10/Materials | Hacked Robot Schematics ------------------ None Fabricated ------------ Nothing Repaired ---------- Nothing Studied --------- None Alien Tech Used ----------------- None Achievements -------------- Do Not Disturb Strength In Numbers Challenges ------------ None Game ------ Seed BombardmentResetTether Manual? 0 Play Time 00:18:31 Cumulative 1004.7 hours Start 2025.10.29 @ 00:23:33 End 2025.10.29 @ 00:40:26 Sessions 1 Manual Loads 0 Difficulty Rogue Special Mode None Game No. 186 Rogue 186 Adventurer 0 Explorer 0 Win Type - Total 57 Types 23/6/10/1/3/1/6/3/2/2 Lore% 92 Gallery% 92 Achievement% 70 Wizard Run 0 Options --------- Layout 0 ASCII 0 Keyboard 0 Movement Numpad Keybinds 0 Fullscreen 1 Font 18/SmallcapsGlow Map View 76x50 Zoom Use 0% Tactical HUD 1 Map Filters NONE Filters NONE Steam 1 RUN: dcdc04b6-0f3a-4407-a903-4b956e58bc27